[Event "November 21 Late 2023"]
[Site "https://www.chess.com"]
[Date "2023.11.21"]
[Round "4"]
[White "Korchmar, Vasiliy"]
[Black "Joie, Sebastien"]
[Result "1-0"]
[Board "52"]
[TimeControl "180+1"]
[WhiteFideId "24131750"]
[BlackFideId "650420"]
[WhiteElo "2372"]
[BlackElo "2396"]
[WhiteTeam "RUS"]
[BlackTeam "FRA"]
[WhiteClock "0:02:27"]
[BlackClock "0:00:05"]

1. e4 {[%clk 0:03:00]}  c5 {[%clk 0:02:49]} 2. d4 {[%clk 0:03:00]}  cxd4 {[%clk 0:02:50]} 3. Qxd4 {[%clk 0:03:01]}  Nc6 {[%clk 0:02:50]} 4. Qd3 {[%clk 0:03:01]}  g6 {[%clk 0:02:49]} 5. Nc3 {[%clk 0:03:02]}  Bg7 {[%clk 0:02:49]} 6. Nf3 {[%clk 0:03:02]}  Nf6 {[%clk 0:02:49]} 7. Be2 {[%clk 0:03:03]}  O-O {[%clk 0:02:49]} 8. O-O {[%clk 0:03:04]}  d6 {[%clk 0:02:49]} 9. Nd5 {[%clk 0:03:04]}  Bd7 {[%clk 0:02:27]} 10. c3 {[%clk 0:03:03]}  Rc8 {[%clk 0:02:23]} 11. Bg5 {[%clk 0:03:03]}  Ng4 {[%clk 0:02:23]} 12. Rad1 {[%clk 0:02:58]}  f6 {[%clk 0:02:14]} 13. Bh4 {[%clk 0:02:52]}  Qa5 {[%clk 0:02:10]} 14. b4 {[%clk 0:02:42]}  Qa4 {[%clk 0:01:48]} 15. b5 {[%clk 0:02:36]}  Nce5 {[%clk 0:01:33]} 16. Nxe5 {[%clk 0:02:36]}  Nxe5 {[%clk 0:01:32]} 17. Nxe7+ {[%clk 0:02:36]}  Kh8 {[%clk 0:00:58]} 18. Qxd6 {[%clk 0:02:37]}  Qxa2 {[%clk 0:00:27]} 19. Nxc8 {[%clk 0:02:30]}  Rxc8 {[%clk 0:00:28]} 20. f4 {[%clk 0:02:27]}  Qxe2 {[%clk 0:00:06]} 21. fxe5 {[%clk 0:02:27]}  Bxb5 {[%clk 0:00:07]} 22. Bxf6 {[%clk 0:02:26]}  Qe3+ {[%clk 0:00:05]} 23. Kh1 {[%clk 0:02:26]}  Bxf1 {[%clk 0:00:05]} 24. Qd8+ {[%clk 0:02:26]}  Rxd8 {[%clk 0:00:05]} 25. Rxd8# {[%clk 0:02:27]} 1-0

[Event "November 21 Late 2023"]
[Site "https://www.chess.com"]
[Date "2023.11.21"]
[Round "4"]
[White "Hamitevici, Vladimir"]
[Black "topce"]
[Result "0-1"]
[Board "56"]
[TimeControl "180+1"]
[WhiteFideId "13902393"]
[WhiteElo "2405"]
[BlackElo "2450"]
[WhiteTeam "MDA"]
[WhiteClock "0:00:00"]
[BlackClock "0:00:12"]

1. c4 {[%clk 0:03:00]}  c5 {[%clk 0:02:59]} 2. Nc3 {[%clk 0:02:59]}  Nc6 {[%clk 0:03:00]} 3. e3 {[%clk 0:02:55]}  g6 {[%clk 0:03:00]} 4. Nge2 {[%clk 0:02:52]}  Bg7 {[%clk 0:03:00]} 5. g3 {[%clk 0:02:52]}  d6 {[%clk 0:02:59]} 6. Bg2 {[%clk 0:02:52]}  Bf5 {[%clk 0:02:56]} 7. d3 {[%clk 0:02:49]}  h5 {[%clk 0:02:47]} 8. e4 {[%clk 0:02:43]}  Bd7 {[%clk 0:02:41]} 9. h3 {[%clk 0:02:35]}  a6 {[%clk 0:02:36]} 10. a4 {[%clk 0:02:15]}  Rb8 {[%clk 0:02:32]} 11. O-O {[%clk 0:02:08]}  Qc8 {[%clk 0:02:26]} 12. Kh2 {[%clk 0:01:58]}  Nf6 {[%clk 0:02:21]} 13. Bg5 {[%clk 0:01:34]}  Nh7 {[%clk 0:02:08]} 14. Be3 {[%clk 0:01:33]}  Nf6 {[%clk 0:02:06]} 15. Nd5 {[%clk 0:01:13]}  Nxd5 {[%clk 0:01:28]} 16. cxd5 {[%clk 0:01:13]}  Nb4 {[%clk 0:01:24]} 17. d4 {[%clk 0:01:09]}  c4 {[%clk 0:01:14]} 18. f4 {[%clk 0:00:57]}  Nd3 {[%clk 0:01:09]} 19. Qc2 {[%clk 0:00:44]}  b5 {[%clk 0:00:56]} 20. axb5 {[%clk 0:00:39]}  axb5 {[%clk 0:00:57]} 21. b3 {[%clk 0:00:24]}  O-O {[%clk 0:00:55]} 22. e5 {[%clk 0:00:20]}  Bf5 {[%clk 0:00:52]} 23. bxc4 {[%clk 0:00:20]}  bxc4 {[%clk 0:00:51]} 24. Qa4 {[%clk 0:00:19]}  Rb2 {[%clk 0:00:47]} 25. Nc3 {[%clk 0:00:17]}  Bxh3 {[%clk 0:00:46]} 26. Rg1 {[%clk 0:00:12]}  Bxg2 {[%clk 0:00:42]} 27. Rxg2 {[%clk 0:00:13]}  Rxg2+ {[%clk 0:00:42]} 28. Kxg2 {[%clk 0:00:14]}  Qg4 {[%clk 0:00:41]} 29. Qxc4 {[%clk 0:00:13]}  h4 {[%clk 0:00:41]} 30. Qxd3 {[%clk 0:00:13]}  Qxg3+ {[%clk 0:00:39]} 31. Kf1 {[%clk 0:00:12]}  h3 {[%clk 0:00:39]} 32. Ke2 {[%clk 0:00:11]}  Qg2+ {[%clk 0:00:28]} 33. Bf2 {[%clk 0:00:11]}  Rb8 {[%clk 0:00:23]} 34. Nd1 {[%clk 0:00:02]}  h2 {[%clk 0:00:22]} 35. Ne3 {[%clk 0:00:02]}  Rb2+ {[%clk 0:00:17]} 36. Nc2 {[%clk 0:00:03]}  h1=Q {[%clk 0:00:13]} 37. Rxh1 {[%clk 0:00:03]}  Qxh1 {[%clk 0:00:14]} 38. Be1 {[%clk 0:00:00]}  Qxd5 {[%clk 0:00:12]} 0-1

[Event "November 21 Late 2023"]
[Site "https://www.chess.com"]
[Date "2023.11.21"]
[Round "4"]
[White "Arabidze, Meri"]
[Black "Rakitic2010"]
[Result "1-0"]
[Board "57"]
[TimeControl "180+1"]
[WhiteFideId "13604040"]
[WhiteElo "2416"]
[BlackElo "2447"]
[WhiteTeam "GEO"]
[WhiteClock "0:01:47"]
[BlackClock "0:00:41"]

1. Nf3 {[%clk 0:03:00]}  Nf6 {[%clk 0:02:57]} 2. b3 {[%clk 0:03:01]}  g6 {[%clk 0:02:55]} 3. Bb2 {[%clk 0:03:01]}  Bg7 {[%clk 0:02:56]} 4. g3 {[%clk 0:03:02]}  O-O {[%clk 0:02:55]} 5. Bg2 {[%clk 0:03:02]}  Ne8 {[%clk 0:02:54]} 6. Bxg7 {[%clk 0:02:59]}  Nxg7 {[%clk 0:02:55]} 7. O-O {[%clk 0:02:59]}  d5 {[%clk 0:02:55]} 8. d4 {[%clk 0:02:59]}  c5 {[%clk 0:02:48]} 9. dxc5 {[%clk 0:02:58]}  Nc6 {[%clk 0:02:47]} 10. c3 {[%clk 0:02:56]}  a5 {[%clk 0:02:47]} 11. Nbd2 {[%clk 0:02:53]}  Ne6 {[%clk 0:02:37]} 12. c4 {[%clk 0:02:43]}  Nxc5 {[%clk 0:02:33]} 13. Rc1 {[%clk 0:02:42]}  Na6 {[%clk 0:02:27]} 14. cxd5 {[%clk 0:02:38]}  Qxd5 {[%clk 0:02:25]} 15. Nc4 {[%clk 0:02:39]}  Qxd1 {[%clk 0:02:18]} 16. Rfxd1 {[%clk 0:02:40]}  Be6 {[%clk 0:01:55]} 17. Ng5 {[%clk 0:02:39]}  Bxc4 {[%clk 0:01:54]} 18. Rxc4 {[%clk 0:02:40]}  Rfd8 {[%clk 0:01:53]} 19. Rxd8+ {[%clk 0:02:36]}  Rxd8 {[%clk 0:01:50]} 20. Bxc6 {[%clk 0:02:35]}  bxc6 {[%clk 0:01:50]} 21. Rxc6 {[%clk 0:02:27]}  Nb4 {[%clk 0:01:46]} 22. Rc7 {[%clk 0:02:27]}  Kg7 {[%clk 0:01:41]} 23. h4 {[%clk 0:02:23]}  h6 {[%clk 0:01:37]} 24. Nf3 {[%clk 0:02:15]}  Nxa2 {[%clk 0:01:30]} 25. Rxe7 {[%clk 0:02:15]}  Kf6 {[%clk 0:01:30]} 26. Ra7 {[%clk 0:02:11]}  Nc1 {[%clk 0:01:30]} 27. Rxa5 {[%clk 0:02:04]}  Nxb3 {[%clk 0:01:28]} 28. Ra6+ {[%clk 0:02:04]}  Kg7 {[%clk 0:01:27]} 29. Ra7 {[%clk 0:02:03]}  Nd4 {[%clk 0:01:19]} 30. Ne5 {[%clk 0:02:01]}  Nxe2+ {[%clk 0:01:09]} 31. Kf1 {[%clk 0:02:01]}  Nd4 {[%clk 0:01:02]} 32. Nxf7 {[%clk 0:01:50]}  Rc8 {[%clk 0:00:43]} 33. Nd6+ {[%clk 0:01:48]}  Rc7 {[%clk 0:00:41]} 34. Rxc7+ {[%clk 0:01:47]} 1-0

[Event "November 21 Late 2023"]
[Site "https://www.chess.com"]
[Date "2023.11.21"]
[Round "4"]
[White "Real_taiatai"]
[Black "Zhurbinsky, David"]
[Result "1-0"]
[Board "58"]
[TimeControl "180+1"]
[BlackFideId "2072904"]
[WhiteElo "2446"]
[BlackElo "2637"]
[BlackTeam "USA"]
[WhiteClock "0:00:19"]
[BlackClock "0:00:02"]

1. e4 {[%clk 0:03:00]}  e5 {[%clk 0:02:57]} 2. Nf3 {[%clk 0:03:01]}  Nc6 {[%clk 0:02:57]} 3. Bc4 {[%clk 0:03:02]}  Bc5 {[%clk 0:02:57]} 4. O-O {[%clk 0:03:01]}  d6 {[%clk 0:02:56]} 5. c3 {[%clk 0:03:00]}  Bb6 {[%clk 0:02:56]} 6. h3 {[%clk 0:02:59]}  Nf6 {[%clk 0:02:55]} 7. Re1 {[%clk 0:03:00]}  O-O {[%clk 0:02:55]} 8. d4 {[%clk 0:03:00]}  Qe7 {[%clk 0:02:52]} 9. a4 {[%clk 0:03:00]}  a6 {[%clk 0:02:52]} 10. Bg5 {[%clk 0:02:55]}  h6 {[%clk 0:02:52]} 11. Bh4 {[%clk 0:02:55]}  Rd8 {[%clk 0:02:43]} 12. Bb3 {[%clk 0:02:42]}  g5 {[%clk 0:02:17]} 13. Bg3 {[%clk 0:02:40]}  Kg7 {[%clk 0:01:55]} 14. Na3 {[%clk 0:02:37]}  Nh5 {[%clk 0:01:49]} 15. Nc4 {[%clk 0:02:31]}  Nxg3 {[%clk 0:01:39]} 16. fxg3 {[%clk 0:02:31]}  Ba7 {[%clk 0:01:36]} 17. Kh2 {[%clk 0:02:17]}  Qf6 {[%clk 0:01:19]} 18. Rf1 {[%clk 0:02:15]}  Qg6 {[%clk 0:01:15]} 19. g4 {[%clk 0:02:01]}  Qxe4 {[%clk 0:00:56]} 20. Bc2 {[%clk 0:02:00]}  Qd5 {[%clk 0:00:54]} 21. Ne3 {[%clk 0:01:58]}  Qe6 {[%clk 0:00:49]} 22. Nf5+ {[%clk 0:01:57]}  Kh8 {[%clk 0:00:49]} 23. d5 {[%clk 0:01:57]}  Qf6 {[%clk 0:00:47]} 24. dxc6 {[%clk 0:01:57]}  bxc6 {[%clk 0:00:48]} 25. Nd2 {[%clk 0:01:54]}  d5 {[%clk 0:00:46]} 26. Ng3 {[%clk 0:01:30]}  Qe7 {[%clk 0:00:42]} 27. Bf5 {[%clk 0:01:27]}  Bb7 {[%clk 0:00:41]} 28. Qe2 {[%clk 0:01:16]}  e4 {[%clk 0:00:41]} 29. Nb3 {[%clk 0:01:06]}  Bb6 {[%clk 0:00:32]} 30. Rae1 {[%clk 0:00:46]}  Qe5 {[%clk 0:00:29]} 31. Nd2 {[%clk 0:00:40]}  Re8 {[%clk 0:00:20]} 32. Bxe4 {[%clk 0:00:22]}  dxe4 {[%clk 0:00:19]} 33. Rf5 {[%clk 0:00:22]}  Qe6 {[%clk 0:00:15]} 34. Ndxe4 {[%clk 0:00:22]}  c5 {[%clk 0:00:09]} 35. Qf2 {[%clk 0:00:21]}  c4 {[%clk 0:00:07]} 36. Qf1 {[%clk 0:00:20]}  Kg7 {[%clk 0:00:05]} 37. Rf6 {[%clk 0:00:19]}  Qe5 {[%clk 0:00:04]} 38. Kh1 {[%clk 0:00:18]}  Re7 {[%clk 0:00:03]} 39. Nh5+ {[%clk 0:00:18]}  Kg8 {[%clk 0:00:02]} 40. Rxh6 {[%clk 0:00:17]}  Bxe4 {[%clk 0:00:02]} 41. Rxe4 {[%clk 0:00:16]}  Qxe4 {[%clk 0:00:01]} 42. Nf6+ {[%clk 0:00:17]}  Kg7 {[%clk 0:00:01]} 43. Nxe4 {[%clk 0:00:18]}  Rxe4 {[%clk 0:00:02]} 44. Qf6+ {[%clk 0:00:18]}  Kg8 {[%clk 0:00:02]} 45. Rh8# {[%clk 0:00:19]} 1-0

[Event "November 21 Late 2023"]
[Site "https://www.chess.com"]
[Date "2023.11.21"]
[Round "4"]
[White "Taboas Rodriguez, Daniel"]
[Black "Gurevich, Dmitry"]
[Result "1/2-1/2"]
[Board "59"]
[TimeControl "180+1"]
[WhiteFideId "2208466"]
[BlackFideId "2000407"]
[WhiteElo "2365"]
[BlackElo "2506"]
[WhiteTeam "ESP"]
[BlackTeam "USA"]
[WhiteClock "0:00:42"]
[BlackClock "0:00:09"]

1. d4 {[%clk 0:03:00]}  Nf6 {[%clk 0:02:59]} 2. Nf3 {[%clk 0:03:00]}  e6 {[%clk 0:02:58]} 3. c4 {[%clk 0:03:01]}  a6 {[%clk 0:02:57]} 4. Nc3 {[%clk 0:03:01]}  c5 {[%clk 0:02:57]} 5. e3 {[%clk 0:03:00]}  d5 {[%clk 0:02:56]} 6. a3 {[%clk 0:02:54]}  Nc6 {[%clk 0:02:54]} 7. dxc5 {[%clk 0:02:54]}  Bxc5 {[%clk 0:02:53]} 8. b4 {[%clk 0:02:54]}  Ba7 {[%clk 0:02:51]} 9. Bb2 {[%clk 0:02:53]}  O-O {[%clk 0:02:51]} 10. Rc1 {[%clk 0:02:49]}  d4 {[%clk 0:02:47]} 11. exd4 {[%clk 0:02:48]}  Nxd4 {[%clk 0:02:46]} 12. Nxd4 {[%clk 0:02:44]}  Qxd4 {[%clk 0:02:36]} 13. c5 {[%clk 0:02:33]}  Qxd1+ {[%clk 0:02:27]} 14. Rxd1 {[%clk 0:02:28]}  e5 {[%clk 0:02:19]} 15. Bc4 {[%clk 0:02:24]}  b6 {[%clk 0:02:14]} 16. c6 {[%clk 0:02:10]}  b5 {[%clk 0:02:14]} 17. Bb3 {[%clk 0:02:10]}  Bg4 {[%clk 0:01:58]} 18. f3 {[%clk 0:02:09]}  Bf5 {[%clk 0:01:36]} 19. Nd5 {[%clk 0:02:06]}  Nxd5 {[%clk 0:01:31]} 20. Bxd5 {[%clk 0:02:07]}  Rac8 {[%clk 0:01:25]} 21. Ke2 {[%clk 0:02:06]}  Rfe8 {[%clk 0:01:18]} 22. Rc1 {[%clk 0:02:00]}  Be6 {[%clk 0:01:16]} 23. Rhd1 {[%clk 0:01:59]}  Bb6 {[%clk 0:01:03]} 24. Bxe6 {[%clk 0:01:50]}  Rxe6 {[%clk 0:01:02]} 25. c7 {[%clk 0:01:50]}  Kf8 {[%clk 0:00:53]} 26. Rd7 {[%clk 0:01:47]}  Ke8 {[%clk 0:00:46]} 27. Rd5 {[%clk 0:01:39]}  Rxc7 {[%clk 0:00:39]} 28. Rxc7 {[%clk 0:01:35]}  Bxc7 {[%clk 0:00:38]} 29. Kd3 {[%clk 0:01:35]}  Rd6 {[%clk 0:00:28]} 30. Rxd6 {[%clk 0:01:25]}  Bxd6 {[%clk 0:00:27]} 31. Ke4 {[%clk 0:01:26]}  f6 {[%clk 0:00:27]} 32. Kd5 {[%clk 0:01:26]}  Kd7 {[%clk 0:00:27]} 33. g4 {[%clk 0:01:25]}  Bc7 {[%clk 0:00:24]} 34. h4 {[%clk 0:01:24]}  Bb6 {[%clk 0:00:23]} 35. h5 {[%clk 0:01:22]}  Be3 {[%clk 0:00:22]} 36. Ke4 {[%clk 0:01:16]}  Bb6 {[%clk 0:00:20]} 37. Kd5 {[%clk 0:01:16]}  Be3 {[%clk 0:00:20]} 38. Ke4 {[%clk 0:01:16]}  Bd2 {[%clk 0:00:20]} 39. Kd5 {[%clk 0:01:16]}  g6 {[%clk 0:00:17]} 40. hxg6 {[%clk 0:01:12]}  hxg6 {[%clk 0:00:17]} 41. Kc5 {[%clk 0:01:11]}  Be3+ {[%clk 0:00:16]} 42. Kd5 {[%clk 0:01:10]}  Bb6 {[%clk 0:00:16]} 43. Bc1 {[%clk 0:01:09]}  Bc7 {[%clk 0:00:15]} 44. Bb2 {[%clk 0:01:09]}  Bd6 {[%clk 0:00:13]} 45. Bc1 {[%clk 0:01:03]}  Bc7 {[%clk 0:00:13]} 46. Be3 {[%clk 0:01:02]}  Bd6 {[%clk 0:00:12]} 47. Bb6 {[%clk 0:01:02]}  f5 {[%clk 0:00:12]} 48. gxf5 {[%clk 0:01:01]}  gxf5 {[%clk 0:00:12]} 49. Bf2 {[%clk 0:00:59]}  e4 {[%clk 0:00:09]} 50. fxe4 {[%clk 0:00:58]}  fxe4 {[%clk 0:00:09]} 51. Kxe4 {[%clk 0:00:59]}  Ke6 {[%clk 0:00:09]} 52. Kd4 {[%clk 0:00:59]}  Be7 {[%clk 0:00:08]} 53. Be3 {[%clk 0:00:57]}  Bf8 {[%clk 0:00:07]} 54. Bf4 {[%clk 0:00:55]}  Be7 {[%clk 0:00:06]} 55. Be5 {[%clk 0:00:54]}  Bf8 {[%clk 0:00:06]} 56. Bg3 {[%clk 0:00:53]}  Be7 {[%clk 0:00:06]} 57. Bf2 {[%clk 0:00:51]}  Bf8 {[%clk 0:00:06]} 58. Bh4 {[%clk 0:00:50]}  Bd6 {[%clk 0:00:05]} 59. Be1 {[%clk 0:00:49]}  Bf8 {[%clk 0:00:05]} 60. Bd2 {[%clk 0:00:46]}  Kd6 {[%clk 0:00:05]} 61. Bf4+ {[%clk 0:00:46]}  Kc6 {[%clk 0:00:05]} 62. Kc3 {[%clk 0:00:45]}  a5 {[%clk 0:00:05]} 63. bxa5 {[%clk 0:00:43]}  Bxa3 {[%clk 0:00:04]} 64. Kb3 {[%clk 0:00:43]}  Bc5 {[%clk 0:00:03]} 65. Bd2 {[%clk 0:00:43]}  Kb7 {[%clk 0:00:03]} 66. Bc3 {[%clk 0:00:42]}  Ka6 {[%clk 0:00:04]} 67. Bd2 {[%clk 0:00:43]}  Bd6 {[%clk 0:00:04]} 68. Bc3 {[%clk 0:00:39]}  Bc7 {[%clk 0:00:04]} 69. Bd2 {[%clk 0:00:39]}  Bxa5 {[%clk 0:00:04]} 70. Bxa5 {[%clk 0:00:39]}  Kxa5 {[%clk 0:00:05]} 71. Ka3 {[%clk 0:00:40]}  b4+ {[%clk 0:00:05]} 72. Kb3 {[%clk 0:00:40]}  Kb5 {[%clk 0:00:05]} 73. Kb2 {[%clk 0:00:41]}  Ka4 {[%clk 0:00:06]} 74. Ka2 {[%clk 0:00:41]}  b3+ {[%clk 0:00:07]} 75. Kb2 {[%clk 0:00:42]}  Kb4 {[%clk 0:00:07]} 76. Kb1 {[%clk 0:00:42]}  Ka3 {[%clk 0:00:08]} 77. Ka1 {[%clk 0:00:42]}  b2+ {[%clk 0:00:08]} 78. Kb1 {[%clk 0:00:43]}  Ka4 {[%clk 0:00:09]} 79. Kxb2 {[%clk 0:00:42]} 1/2-1/2

[Event "November 21 Late 2023"]
[Site "https://www.chess.com"]
[Date "2023.11.21"]
[Round "4"]
[White "Feng, Eric"]
[Black "Su, Dion"]
[Result "1-0"]
[Board "61"]
[TimeControl "180+1"]
[WhiteFideId "30952590"]
[BlackFideId "2029731"]
[WhiteElo "1785"]
[BlackElo "2409"]
[WhiteTeam "USA"]
[BlackTeam "USA"]
[WhiteClock "0:00:34"]
[BlackClock "0:00:03"]

1. d4 {[%clk 0:03:00]}  Nf6 {[%clk 0:02:49]} 2. c4 {[%clk 0:03:00]}  e6 {[%clk 0:02:49]} 3. Nf3 {[%clk 0:03:01]}  d5 {[%clk 0:02:47]} 4. g3 {[%clk 0:03:01]}  Be7 {[%clk 0:02:46]} 5. Bg2 {[%clk 0:03:01]}  O-O {[%clk 0:02:46]} 6. O-O {[%clk 0:03:02]}  a5 {[%clk 0:02:47]} 7. Qc2 {[%clk 0:03:00]}  c6 {[%clk 0:02:47]} 8. Nbd2 {[%clk 0:02:59]}  Nbd7 {[%clk 0:02:47]} 9. e4 {[%clk 0:03:00]}  b6 {[%clk 0:02:43]} 10. e5 {[%clk 0:02:59]}  Ne8 {[%clk 0:02:43]} 11. cxd5 {[%clk 0:02:51]}  cxd5 {[%clk 0:02:42]} 12. Rd1 {[%clk 0:02:51]}  Bb7 {[%clk 0:02:41]} 13. Nf1 {[%clk 0:02:50]}  Rc8 {[%clk 0:02:36]} 14. Qb1 {[%clk 0:02:50]}  Nc7 {[%clk 0:02:31]} 15. h4 {[%clk 0:02:49]}  h6 {[%clk 0:02:27]} 16. Ne3 {[%clk 0:02:38]}  f6 {[%clk 0:02:18]} 17. exf6 {[%clk 0:02:37]}  Bxf6 {[%clk 0:02:10]} 18. Ng4 {[%clk 0:02:36]}  b5 {[%clk 0:01:48]} 19. Nfe5 {[%clk 0:02:20]}  Nxe5 {[%clk 0:01:45]} 20. dxe5 {[%clk 0:02:21]}  Be7 {[%clk 0:01:40]} 21. Bxh6 {[%clk 0:01:54]}  gxh6 {[%clk 0:01:31]} 22. Qg6+ {[%clk 0:01:49]}  Kh8 {[%clk 0:01:31]} 23. Qxh6+ {[%clk 0:01:50]}  Kg8 {[%clk 0:01:32]} 24. Qg6+ {[%clk 0:01:51]}  Kh8 {[%clk 0:01:32]} 25. Bf1 {[%clk 0:01:45]}  Qe8 {[%clk 0:01:25]} 26. Qh6+ {[%clk 0:01:45]}  Kg8 {[%clk 0:01:25]} 27. Bd3 {[%clk 0:01:45]}  Qf7 {[%clk 0:01:20]} 28. Nf6+ {[%clk 0:01:36]}  Bxf6 {[%clk 0:00:53]} 29. exf6 {[%clk 0:01:36]}  e5 {[%clk 0:00:45]} 30. Bg6 {[%clk 0:01:31]}  Qd7 {[%clk 0:00:41]} 31. Bf5 {[%clk 0:00:57]}  Qf7 {[%clk 0:00:32]} 32. Qg5+ {[%clk 0:00:57]}  Kh8 {[%clk 0:00:32]} 33. Bg6 {[%clk 0:00:57]}  Qd7 {[%clk 0:00:17]} 34. Qxe5 {[%clk 0:00:57]}  Rf7 {[%clk 0:00:10]} 35. Rd4 {[%clk 0:00:39]}  Re8 {[%clk 0:00:04]} 36. Qh5+ {[%clk 0:00:36]}  Kg8 {[%clk 0:00:04]} 37. Bxf7+ {[%clk 0:00:33]}  Qxf7 {[%clk 0:00:05]} 38. Rg4+ {[%clk 0:00:34]}  Kf8 {[%clk 0:00:03]} 39. Qh8+ {[%clk 0:00:34]} 1-0

[Event "November 21 Late 2023"]
[Site "https://www.chess.com"]
[Date "2023.11.21"]
[Round "4"]
[White "ilya2700"]
[Black "Statham_l3"]
[Result "1-0"]
[Board "70"]
[TimeControl "180+1"]
[WhiteElo "2235"]
[BlackElo "2601"]
[WhiteClock "0:00:05"]
[BlackClock "0:00:02"]

1. e4 {[%clk 0:02:59]}  e5 {[%clk 0:02:59]} 2. Nf3 {[%clk 0:02:58]}  Nc6 {[%clk 0:02:58]} 3. Bc4 {[%clk 0:02:58]}  Bc5 {[%clk 0:02:56]} 4. d3 {[%clk 0:02:58]}  Nf6 {[%clk 0:02:55]} 5. Nc3 {[%clk 0:02:58]}  d6 {[%clk 0:02:47]} 6. Na4 {[%clk 0:02:57]}  Bg4 {[%clk 0:02:38]} 7. Nxc5 {[%clk 0:02:56]}  dxc5 {[%clk 0:02:39]} 8. c3 {[%clk 0:02:55]}  Qd6 {[%clk 0:02:11]} 9. h3 {[%clk 0:02:49]}  Bd7 {[%clk 0:01:57]} 10. O-O {[%clk 0:02:43]}  Na5 {[%clk 0:01:41]} 11. Bb3 {[%clk 0:02:30]}  Nxb3 {[%clk 0:01:41]} 12. Qxb3 {[%clk 0:02:31]}  O-O-O {[%clk 0:01:36]} 13. Ng5 {[%clk 0:02:20]}  Be6 {[%clk 0:01:05]} 14. Nxe6 {[%clk 0:02:05]}  Qxe6 {[%clk 0:01:06]} 15. Qxe6+ {[%clk 0:02:04]}  fxe6 {[%clk 0:01:07]} 16. Rd1 {[%clk 0:02:02]}  c4 {[%clk 0:01:07]} 17. Bg5 {[%clk 0:01:18]}  cxd3 {[%clk 0:01:04]} 18. Bxf6 {[%clk 0:01:14]}  gxf6 {[%clk 0:01:04]} 19. Rd2 {[%clk 0:01:13]}  c5 {[%clk 0:00:43]} 20. b3 {[%clk 0:01:09]}  b5 {[%clk 0:00:40]} 21. c4 {[%clk 0:01:02]}  bxc4 {[%clk 0:00:36]} 22. Rc1 {[%clk 0:00:57]}  Rd4 {[%clk 0:00:31]} 23. bxc4 {[%clk 0:00:49]}  Rhd8 {[%clk 0:00:29]} 24. f3 {[%clk 0:00:46]}  Kc7 {[%clk 0:00:29]} 25. Kf2 {[%clk 0:00:44]}  f5 {[%clk 0:00:21]} 26. Ke3 {[%clk 0:00:41]}  Rg8 {[%clk 0:00:15]} 27. Rc3 {[%clk 0:00:35]}  f4+ {[%clk 0:00:06]} 28. Kf2 {[%clk 0:00:34]}  Rb8 {[%clk 0:00:04]} 29. Ra3 {[%clk 0:00:19]}  Rb7 {[%clk 0:00:03]} 30. Rc3 {[%clk 0:00:16]}  Rb4 {[%clk 0:00:03]} 31. h4 {[%clk 0:00:13]}  Rbxc4 {[%clk 0:00:03]} 32. Rdxd3 {[%clk 0:00:08]}  Rxc3 {[%clk 0:00:03]} 33. Rxc3 {[%clk 0:00:09]}  Rd2+ {[%clk 0:00:03]} 34. Ke1 {[%clk 0:00:09]}  Rxg2 {[%clk 0:00:03]} 35. Rxc5+ {[%clk 0:00:09]}  Kd6 {[%clk 0:00:04]} 36. Ra5 {[%clk 0:00:09]}  Rh2 {[%clk 0:00:03]} 37. Ra6+ {[%clk 0:00:07]}  Kc5 {[%clk 0:00:03]} 38. Rxe6 {[%clk 0:00:06]}  Kd4 {[%clk 0:00:03]} 39. Ra6 {[%clk 0:00:04]}  Rb2 {[%clk 0:00:03]} 40. Rxa7 {[%clk 0:00:02]}  h5 {[%clk 0:00:03]} 41. Ra3 {[%clk 0:00:02]}  Rb1+ {[%clk 0:00:02]} 42. Kd2 {[%clk 0:00:01]}  Rh1 {[%clk 0:00:03]} 43. Ra4+ {[%clk 0:00:01]}  Kc5 {[%clk 0:00:03]} 44. Kc3 {[%clk 0:00:01]}  Rh3 {[%clk 0:00:03]} 45. Ra5+ {[%clk 0:00:01]}  Kd6 {[%clk 0:00:03]} 46. Rd5+ {[%clk 0:00:02]}  Ke6 {[%clk 0:00:04]} 47. Rd3 {[%clk 0:00:03]}  Rxh4 {[%clk 0:00:04]} 48. a4 {[%clk 0:00:03]}  Rh1 {[%clk 0:00:04]} 49. Kb4 {[%clk 0:00:03]}  Rb1+ {[%clk 0:00:04]} 50. Rb3 {[%clk 0:00:03]}  Rc1 {[%clk 0:00:03]} 51. a5 {[%clk 0:00:03]}  h4 {[%clk 0:00:04]} 52. Rb2 {[%clk 0:00:03]}  h3 {[%clk 0:00:04]} 53. a6 {[%clk 0:00:03]}  Ra1 {[%clk 0:00:03]} 54. Kb5 {[%clk 0:00:01]}  Kd6 {[%clk 0:00:03]} 55. Kb6 {[%clk 0:00:02]}  Kd7 {[%clk 0:00:03]} 56. Kb7 {[%clk 0:00:02]}  Ra3 {[%clk 0:00:01]} 57. a7 {[%clk 0:00:02]}  Rxa7+ {[%clk 0:00:01]} 58. Kxa7 {[%clk 0:00:02]}  Kc6 {[%clk 0:00:02]} 59. Rh2 {[%clk 0:00:03]}  Kc5 {[%clk 0:00:03]} 60. Rxh3 {[%clk 0:00:04]}  Kd4 {[%clk 0:00:03]} 61. Rh5 {[%clk 0:00:04]}  Ke3 {[%clk 0:00:04]} 62. Rxe5 {[%clk 0:00:04]}  Kxf3 {[%clk 0:00:05]} 63. Re8 {[%clk 0:00:05]}  Kg4 {[%clk 0:00:03]} 64. Rf8 {[%clk 0:00:05]}  f3 {[%clk 0:00:03]} 65. e5 {[%clk 0:00:05]}  f2 {[%clk 0:00:03]} 66. e6 {[%clk 0:00:05]}  f1=Q {[%clk 0:00:02]} 67. Rxf1 {[%clk 0:00:05]} 1-0

[Event "November 21 Late 2023"]
[Site "https://www.chess.com"]
[Date "2023.11.21"]
[Round "4"]
[White "Milchev, Nikolay"]
[Black "DraningWaterHi"]
[Result "1-0"]
[Board "72"]
[TimeControl "180+1"]
[WhiteFideId "2906090"]
[WhiteElo "2449"]
[BlackElo "2142"]
[WhiteTeam "ENG"]
[WhiteClock "0:01:43"]
[BlackClock "0:02:00"]

1. Nf3 {[%clk 0:03:00]}  Nf6 {[%clk 0:02:59]} 2. c4 {[%clk 0:03:01]}  g6 {[%clk 0:02:59]} 3. Nc3 {[%clk 0:03:01]}  Bg7 {[%clk 0:02:58]} 4. e4 {[%clk 0:03:02]}  d6 {[%clk 0:02:56]} 5. d4 {[%clk 0:03:02]}  O-O {[%clk 0:02:55]} 6. h3 {[%clk 0:03:02]}  e5 {[%clk 0:02:52]} 7. dxe5 {[%clk 0:03:02]}  dxe5 {[%clk 0:02:52]} 8. Be3 {[%clk 0:03:03]}  Nbd7 {[%clk 0:02:48]} 9. c5 {[%clk 0:03:02]}  c6 {[%clk 0:02:46]} 10. a3 {[%clk 0:02:59]}  a5 {[%clk 0:02:45]} 11. b4 {[%clk 0:02:58]}  Qe7 {[%clk 0:02:40]} 12. Be2 {[%clk 0:02:56]}  Rd8 {[%clk 0:02:40]} 13. O-O {[%clk 0:02:54]}  Nh5 {[%clk 0:02:36]} 14. Qd6 {[%clk 0:02:51]}  Qe8 {[%clk 0:02:31]} 15. Rfd1 {[%clk 0:02:37]}  Bf8 {[%clk 0:02:30]} 16. Qc7 {[%clk 0:02:32]}  axb4 {[%clk 0:02:26]} 17. axb4 {[%clk 0:02:33]}  Rxa1 {[%clk 0:02:26]} 18. Rxa1 {[%clk 0:02:33]}  Nf4 {[%clk 0:02:25]} 19. Bc4 {[%clk 0:02:12]}  Qe7 {[%clk 0:02:14]} 20. Rd1 {[%clk 0:02:05]}  h6 {[%clk 0:02:09]} 21. Rd6 {[%clk 0:02:00]}  Qe8 {[%clk 0:02:07]} 22. Bxf4 {[%clk 0:01:58]}  Bxd6 {[%clk 0:02:06]} 23. Qxd6 {[%clk 0:01:54]}  exf4 {[%clk 0:02:03]} 24. Qxg6+ {[%clk 0:01:54]}  Kf8 {[%clk 0:02:04]} 25. Qxh6+ {[%clk 0:01:54]}  Kg8 {[%clk 0:02:00]} 26. Ng5 {[%clk 0:01:48]}  Ne5 {[%clk 0:01:59]} 27. Qh7+ {[%clk 0:01:42]}  Kf8 {[%clk 0:01:59]} 28. Qh8+ {[%clk 0:01:43]}  Ke7 {[%clk 0:02:00]} 29. Qxe5+ {[%clk 0:01:43]}  Kd7 {[%clk 0:02:00]} 30. Qd6# {[%clk 0:01:43]} 1-0